bitfinex/quotes_BTCUSD_20250114
["timestamp","ask_amount","ask_price","bid_price","bid_amount"]
[1736863614650,0.00179257,96303.0,96302.0,0.48490692]
[1736863615144,0.00179257,96303.0,96302.0,1.98490692]
[1736863615631,0.00179257,96303.0,96302.0,2.55256892]
[1736863615875,0.00179257,96303.0,96302.0,2.26857192]
[1736863616135,0.1,96341.0,96302.0,2.26857192]
[1736863616136,0.34503544,96337.0,96315.0,0.15]
[1736863616382,0.5070304,96337.0,96336.0,0.27722692]
[1736863617126,0.34503544,96353.0,96337.0,0.173]
[1736863617354,0.3252,96353.0,96352.0,0.27722692]
[1736863617567,0.2382027,96353.0,96352.0,0.55184792]
[1736863617780,0.00014995,96353.0,96352.0,2.05184792]
[1736863617996,0.34503544,96374.0,96363.0,0.207548]
[1736863618204,0.34503544,96374.0,96363.0,0.67620345]
[1736863618402,0.34503544,96374.0,96363.0,0.67516592]
[1736863618605,0.0017953,96381.0,96363.0,0.67516592]
[1736863618816,0.0017953,96381.0,96368.0,0.207535]
[1736863619024,0.0017953,96385.0,96383.0,0.357505]
[1736863619233,0.0017953,96385.0,96383.0,0.63792192]
[1736863619340,0.0019452,96384.0,96383.0,0.48473192]
[1736863619577,0.0019452,96384.0,96383.0,0.27722692]
[1736863619989,0.0019452,96384.0,96383.0,0.40591792]
[1736863620430,0.0019452,96384.0,96383.0,0.42636074]
[1736863620581,0.0019452,96384.0,96383.0,0.43690351]
[1736863621206,0.34503544,96418.0,96388.0,0.173]
[1736863621512,0.00229233,96400.0,96399.0,0.48469792]
[1736863621890,3.3e-07,96400.0,96399.0,1.98469792]
[1736863622136,0.0146963,96431.0,96418.0,0.023]
[1736863622313,0.01484611,96431.0,96430.0,0.12722692]
[1736863622487,0.01484611,96431.0,96430.0,0.27722692]
[1736863622903,0.01484611,96431.0,96430.0,0.28782696]
[1736863623103,0.01484611,96431.0,96430.0,0.49786996]
[1736863623737,0.01484611,96431.0,96430.0,0.42006996]
[1736863623940,0.01484611,96431.0,96430.0,1.78782696]
[1736863624718,0.01484611,96431.0,96430.0,0.29682696]
[1736863625131,0.01484611,96431.0,96430.0,0.28782696]
[1736863625343,0.01484611,96431.0,96430.0,0.29682696]
[1736863625545,0.01484611,96431.0,96430.0,0.30082696]
[1736863625719,0.01484611,96431.0,96430.0,0.28122692]
[1736863626596,0.59808425,96431.0,96430.0,0.11722692]
[1736863626800,0.59808425,96431.0,96430.0,0.12383585]
[1736863627006,0.59808425,96431.0,96430.0,0.14683585]
[1736863627206,0.60770769,96431.0,96430.0,0.14983585]
[1736863627616,0.60770769,96431.0,96430.0,0.14683585]
[1736863627825,0.60770769,96431.0,96430.0,0.13783585]
[1736863627953,0.60770769,96431.0,96430.0,0.14083585]
[1736863628152,0.60770769,96431.0,96430.0,0.14983585]
[1736863628359,0.60770769,96431.0,96430.0,0.14683585]
[1736863628561,0.60770769,96431.0,96430.0,0.18836485]
[1736863628762,0.60770769,96431.0,96430.0,0.18236485]
[1736863629279,0.60770769,96431.0,96430.0,0.19036485]
[1736863629482,0.60770769,96431.0,96430.0,0.18236485]
[1736863629704,0.60770769,96431.0,96430.0,0.19136485]
[1736863629906,0.60770769,96431.0,96430.0,0.18836485]
[1736863630320,0.26267225,96431.0,96430.0,0.19136485]
[1736863630924,0.26267225,96431.0,96430.0,0.18236485]
[1736863631125,0.01484611,96431.0,96430.0,0.18236485]
[1736863631331,0.01484611,96431.0,96430.0,0.44870785]
[1736863631495,0.01484611,96431.0,96430.0,0.44070785]
[1736863631694,0.01484611,96431.0,96430.0,1.94070785]
[1736863631941,0.01484611,96431.0,96430.0,1.94670785]
[1736863632156,0.01484611,96431.0,96430.0,1.93770785]
[1736863632363,0.34503544,96473.0,96433.0,0.15]
[1736863632535,0.34503544,96473.0,96472.0,0.12722692]
[1736863632737,0.00194322,96481.0,96473.0,0.173]
[1736863632962,0.00194322,96481.0,96478.0,0.10422692]
[1736863633199,0.1,96479.0,96478.0,0.10422692]
[1736863633678,0.00194322,96481.0,96478.0,0.10422692]
[1736863633924,0.00194322,96481.0,96480.0,0.10422692]
[1736863635256,0.00194322,96481.0,96480.0,0.2782633]
[1736863635461,0.00194322,96481.0,96480.0,0.28122692]
[1736863635817,0.00194322,96481.0,96480.0,0.27722692]
[1736863636217,0.00194322,96481.0,96480.0,0.28022692]
[1736863636841,0.00194322,96481.0,96480.0,1.78022692]
[1736863637062,0.34503544,96495.0,96481.0,0.587588]
[1736863637274,0.34503544,96495.0,96494.0,0.27722692]
[1736863637862,0.34503544,96495.0,96494.0,1.77722692]
[1736863638682,0.34503544,96495.0,96494.0,1.77922692]
[1736863638880,0.34503544,96495.0,96494.0,1.78522692]
[1736863639361,0.34503544,96495.0,96494.0,1.77922692]
[1736863639564,0.34503544,96495.0,96494.0,1.78822692]
[1736863640159,0.34503544,96495.0,96494.0,1.78622692]
[1736863640403,0.34503544,96495.0,96494.0,0.3006412]
[1736863640574,0.34503544,96495.0,96494.0,0.26722692]
[1736863640779,0.45017821,96495.0,96494.0,0.11722692]
[1736863640929,0.63107821,96495.0,96494.0,0.11722692]
[1736863641324,0.63107821,96495.0,96468.0,0.012073]
[1736863641325,0.1,96477.0,96468.0,0.012073]
[1736863641533,0.81798091,96495.0,96468.0,0.012073]
[1736863641534,0.78323814,96469.0,96468.0,0.01222281]
[1736863641743,0.92043781,96469.0,96468.0,0.01222281]
[1736863641941,0.34503544,96434.0,96407.0,1.68275272]
[1736863642142,0.00753268,96433.0,96432.0,0.15]
[1736863642374,0.00753268,96433.0,96432.0,0.10422692]
[1736863642568,0.00753268,96433.0,96432.0,1.60422692]
[1736863642778,0.1,96433.0,96432.0,1.75422692]
[1736863643001,0.7409,96415.0,96387.0,0.207495]
[1736863643426,0.64848615,96415.0,96414.0,0.11179225]
[1736863643580,0.54848615,96415.0,96414.0,0.11194206]
[1736863643791,0.54848615,96415.0,96414.0,0.10437673]
[1736863644191,0.64848615,96415.0,96414.0,0.10437673]
[1736863644598,0.64948615,96415.0,96414.0,0.10437673]
[1736863645063,0.64848615,96415.0,96414.0,0.10437673]
[1736863645507,0.64948615,96415.0,96414.0,0.10437673]
[1736863645712,0.64948615,96415.0,96414.0,0.10537673]
[1736863645921,0.64948615,96415.0,96414.0,0.10437673]
[1736863646254,0.64948615,96415.0,96414.0,0.10537673]
[1736863646444,0.64948615,96415.0,96414.0,0.10437673]
[1736863646445,0.54948615,96415.0,96414.0,0.10437673]
[1736863646686,0.54848615,96415.0,96414.0,0.10437673]
[1736863647099,0.54948615,96415.0,96414.0,0.10437673]
[1736863647594,0.54848615,96415.0,96414.0,0.10437673]
[1736863647849,0.64848615,96415.0,96414.0,0.10437673]
[1736863648049,0.77125558,96415.0,96414.0,0.00114981]
[1736863648241,1.00945828,96415.0,96414.0,0.00014981]
[1736863648447,1.00945828,96415.0,96414.0,0.00194258]
[1736863648670,1.05815828,96415.0,96414.0,0.00194258]
[1736863649045,1.03538885,96415.0,96414.0,0.00194258]
[1736863649260,1.04038885,96415.0,96414.0,0.00194258]
[1736863649657,1.03538885,96415.0,96414.0,0.00194258]
[1736863649883,1.03938885,96415.0,96414.0,0.00194258]
[1736863650124,1.04038885,96415.0,96414.0,0.00194258]
[1736863650296,0.5409,96414.0,96385.0,0.0010374]
[1736863650513,0.5409,96387.0,96386.0,0.10422692]
[1736863651147,0.5409,96387.0,96386.0,1.60422692]
[1736863651813,0.5409,96387.0,96386.0,1.77922692]
[1736863652221,0.5419,96387.0,96386.0,1.78722692]
[1736863653235,0.5419,96387.0,96386.0,1.79483955]
[1736863654373,0.001,96387.0,96386.0,1.79483955]
[1736863654586,0.001,96387.0,96386.0,1.80707628]
[1736863655004,0.2382027,96393.0,96387.0,0.173]
[1736863655205,0.2382027,96393.0,96392.0,0.27722692]
[1736863655812,0.2382027,96393.0,96392.0,1.77722692]
[1736863656018,0.2382027,96393.0,96392.0,0.27722692]
[1736863656586,0.2382027,96393.0,96392.0,1.77722692]
[1736863657141,0.2382027,96393.0,96392.0,1.78422692]
[1736863657142,0.24520964,96393.0,96392.0,1.78422692]
[1736863657504,0.24520964,96393.0,96392.0,1.79183955]
[1736863657711,0.24520964,96393.0,96392.0,1.79083955]
[1736863658135,0.24520964,96393.0,96392.0,1.79283955]
[1736863658340,0.34520964,96393.0,96392.0,0.11983955]
[1736863658969,0.24420964,96393.0,96392.0,0.10622692]
[1736863659175,0.34520964,96393.0,96392.0,0.11322692]
[1736863659371,0.24420964,96393.0,96392.0,0.10622692]
[1736863659727,0.24520964,96393.0,96392.0,0.11222692]
[1736863659907,0.24520964,96393.0,96392.0,0.11022692]
[1736863660161,0.78510964,96393.0,96392.0,0.10422692]
[1736863660504,0.78610964,96393.0,96392.0,0.11402095]
[1736863660676,0.88610964,96393.0,96392.0,0.11402095]
[1736863661089,0.88610964,96393.0,96392.0,0.11302095]
[1736863661358,0.78610964,96393.0,96392.0,0.11302095]
[1736863661561,0.24520964,96393.0,96392.0,0.28102095]
[1736863661706,0.24420964,96393.0,96392.0,0.28102095]
[1736863661905,0.24420964,96393.0,96392.0,0.28702095]
[1736863661906,0.24520964,96393.0,96392.0,0.28702095]
[1736863662228,0.24420964,96393.0,96392.0,1.78102095]
[1736863662647,0.24520964,96393.0,96392.0,1.78802095]
[1736863662842,0.24420964,96393.0,96392.0,1.78102095]
[1736863663170,0.24520964,96393.0,96392.0,1.78502095]
[1736863663374,0.24520964,96393.0,96392.0,1.79365912]
[1736863663656,0.00700694,96393.0,96392.0,1.93564912]
[1736863663816,0.00700694,96393.0,96392.0,1.78665912]
[1736863664014,0.00700694,96393.0,96392.0,1.94648912]
[1736863664226,0.5409,96397.0,96393.0,0.587966]
[1736863664423,0.10835468,96411.0,96400.0,0.023]
[1736863664630,0.10835468,96411.0,96410.0,0.48467392]
[1736863664825,0.10835468,96411.0,96410.0,1.98467392]
[1736863665085,0.10835468,96411.0,96410.0,2.37916792]
[1736863665289,0.10835468,96411.0,96410.0,2.33104292]
[1736863665712,0.10835468,96411.0,96410.0,2.53151347]
[1736863665999,0.10835468,96411.0,96410.0,2.53951347]
[1736863666437,0.10835468,96411.0,96410.0,2.53151347]
[1736863666627,0.10835468,96411.0,96410.0,2.53351347]
[1736863666828,0.10835468,96411.0,96410.0,2.36089532]
[1736863666986,0.10835468,96411.0,96410.0,2.36946677]
[1736863667390,0.10835468,96411.0,96410.0,2.37146677]
[1736863667631,0.00039793,96415.0,96414.0,0.357438]
[1736863667832,0.5409,96450.0,96417.0,0.15]
[1736863668056,0.30850443,96450.0,96446.0,0.023]
[1736863668211,0.30850443,96450.0,96447.0,0.10422692]
[1736863668431,0.10850443,96450.0,96447.0,0.10422692]
[1736863668788,0.30850443,96450.0,96447.0,0.10422692]
[1736863669099,0.2,96448.0,96447.0,0.10422692]
[1736863669315,0.1,96436.0,96429.0,0.13754354]
[1736863669466,0.1,96436.0,96430.0,0.10422692]
[1736863669662,0.00117979,96449.0,96430.0,0.10422692]
[1736863669663,0.1,96432.0,96431.0,0.15]
[1736863669872,0.1,96432.0,96431.0,0.25422692]
[1736863670305,0.1,96432.0,96431.0,0.26186509]
[1736863671303,0.75025468,96432.0,96431.0,0.26186509]
[1736863671516,0.85025468,96432.0,96431.0,0.00763817]
[1736863671720,0.86761908,96432.0,96431.0,0.00763817]
[1736863671938,0.86661908,96432.0,96431.0,0.00863817]
[1736863672121,0.94925468,96432.0,96431.0,0.00763817]
[1736863672352,1.91650212,96432.0,96431.0,0.00763817]
[1736863672536,1.92442212,96432.0,96431.0,0.00863817]
[1736863672728,0.2,96414.0,96413.0,0.00763817]
[1736863672945,0.2,96414.0,96413.0,0.11186509]
[1736863673381,0.84925468,96414.0,96413.0,0.00763817]
[1736863673896,0.74925468,96411.0,96410.0,0.00179403]
[1736863674634,0.84925468,96411.0,96410.0,0.00179403]
[1736863675038,0.85325468,96411.0,96410.0,0.00179403]
[1736863676684,0.85325468,96411.0,96410.0,0.10602095]
[1736863677264,0.85325468,96411.0,96410.0,0.00179403]
[1736863677674,0.84925468,96411.0,96410.0,0.00179403]
[1736863677898,0.85325468,96411.0,96410.0,0.00179403]
[1736863678791,0.84925468,96411.0,96410.0,0.00179403]
[1736863680879,0.85325468,96411.0,96410.0,0.00179403]
[1736863681436,0.84925468,96411.0,96410.0,0.00179403]
[1736863681957,0.85325468,96411.0,96410.0,0.00179403]
[1736863683831,0.84925468,96411.0,96410.0,0.00179403]
[1736863684029,0.85325468,96411.0,96410.0,0.00179403]
[1736863686649,0.84925468,96411.0,96410.0,0.00179403]
[1736863686989,0.85325468,96411.0,96410.0,0.00179403]
[1736863687200,0.85325468,96411.0,96393.0,0.00763817]
[1736863687201,0.94925468,96394.0,96393.0,0.00763817]
[1736863687399,0.55,96393.0,96392.0,0.00179403]
[1736863687606,0.55,96393.0,96377.0,0.13754354]
[1736863687607,0.4,96380.0,96377.0,0.13754354]
[1736863687821,0.4,96380.0,96336.0,0.02870427]
[1736863687822,0.4,96380.0,96366.0,0.13754354]
[1736863688238,0.1268,96384.0,96366.0,0.13754354]
[1736863688239,0.84925468,96367.0,96366.0,0.13754354]
[1736863688432,0.84925468,96367.0,96366.0,0.1380431]
[1736863688978,0.84925468,96367.0,96366.0,0.10472648]
[1736863689378,0.64925468,96367.0,96366.0,0.10472648]
[1736863689539,0.10835468,96367.0,96366.0,0.25472648]
[1736863689744,0.10835468,96367.0,96366.0,0.27772648]
[1736863689947,0.09594026,96367.0,96366.0,0.35442648]
[1736863690157,0.5409,96382.0,96378.0,0.023]
[1736863690158,0.09594026,96382.0,96378.0,0.023]
[1736863690414,0.09594026,96382.0,96381.0,0.27722692]
[1736863690618,0.09594026,96382.0,96381.0,0.83354415]
[1736863690828,0.5409,96406.0,96401.0,0.023]
[1736863691055,0.1,96404.0,96403.0,0.023]
[1736863691258,0.2,96404.0,96403.0,0.10422692]
[1736863691780,0.2,96402.0,96401.0,0.01921717]
[1736863691985,0.20117979,96402.0,96401.0,0.01921717]
[1736863692366,0.20013457,96402.0,96401.0,0.01921717]
[1736863692725,0.63684026,96393.0,96381.0,0.01221423]
[1736863692955,0.1,96383.0,96382.0,0.10422692]
[1736863693407,0.1,96386.0,96382.0,0.10422692]
[1736863693622,0.73684026,96393.0,96383.0,0.023]
[1736863693623,0.63684026,96393.0,96383.0,0.023]
[1736863693795,0.09594026,96393.0,96390.0,0.15]
[1736863693992,0.09594026,96393.0,96392.0,0.27722692]
[1736863694710,0.09581543,96393.0,96392.0,0.27722692]
[1736863695306,0.09581543,96393.0,96392.0,0.27922692]
[1736863695475,0.09581543,96393.0,96392.0,0.25622692]
[1736863695703,0.19681543,96393.0,96392.0,0.26322692]
[1736863695905,0.19581543,96393.0,96392.0,0.10622692]
[1736863696149,0.29699522,96393.0,96392.0,0.002]
[1736863696260,0.29581543,96393.0,96392.0,0.10622692]
[1736863696668,0.19581543,96393.0,96392.0,0.10602095]
[1736863696890,0.09581543,96393.0,96392.0,0.10802095]
[1736863697093,0.09581543,96393.0,96392.0,0.25802095]
[1736863697494,0.09581543,96393.0,96392.0,0.25602095]
[1736863697990,0.09681543,96393.0,96392.0,0.26302095]
[1736863698165,0.09581543,96393.0,96392.0,0.25602095]
[1736863698342,0.19581543,96393.0,96392.0,0.25602095]
[1736863698577,0.19581543,96393.0,96392.0,0.26302095]
[1736863699182,0.73671543,96393.0,96392.0,0.26302095]
[1736863701236,0.73671543,96393.0,96392.0,0.27072517]
[1736863701432,0.83671543,96393.0,96392.0,0.12072517]
[1736863701985,0.63671543,96393.0,96392.0,0.12072517]
[1736863702187,0.63671543,96393.0,96392.0,0.11472517]
[1736863702632,0.63671543,96393.0,96392.0,0.11572517]
[1736863702864,0.63671543,96393.0,96392.0,0.11472517]
[1736863702991,0.63671543,96393.0,96392.0,0.13772517]
[1736863703208,0.63771543,96393.0,96392.0,0.13772517]
[1736863703627,0.83671543,96393.0,96392.0,0.01049825]
[1736863703835,0.83671543,96393.0,96392.0,0.00279403]
[1736863704077,0.83671543,96393.0,96392.0,0.00179403]
[1736863704322,0.83671543,96393.0,96392.0,0.00279403]
[1736863704669,0.83671543,96393.0,96392.0,0.00179403]
[1736863705030,0.83771543,96393.0,96392.0,0.00179403]
[1736863706035,0.83671543,96393.0,96392.0,0.00179403]
[1736863706446,0.83871543,96393.0,96392.0,0.00179403]
[1736863706996,0.83671543,96393.0,96392.0,0.00179403]
[1736863707197,0.84071543,96393.0,96392.0,0.10602095]
[1736863707402,0.83871543,96393.0,96392.0,0.10602095]
[1736863707746,0.73871543,96393.0,96392.0,0.10602095]
[1736863707935,0.73871543,96393.0,96392.0,0.25602095]
[1736863708167,0.74071543,96393.0,96392.0,0.25602095]
[1736863708538,0.73956993,96393.0,96392.0,0.25602095]
[1736863709356,0.73756993,96393.0,96392.0,0.25602095]
[1736863709582,0.73756993,96393.0,96392.0,0.26372218]
[1736863709763,0.73856993,96393.0,96392.0,0.26372218]
[1736863710142,0.09666993,96393.0,96392.0,0.28672218]
[1736863710764,0.09666993,96393.0,96392.0,0.28772218]
[1736863711153,0.09666993,96393.0,96392.0,1.78772218]
[1736863711355,0.09666993,96393.0,96392.0,1.77072218]
[1736863712579,0.09666993,96393.0,96392.0,1.78204416]
[1736863712931,0.09666993,96393.0,96392.0,1.78304416]
[1736863713939,0.09666993,96393.0,96392.0,1.80604416]
[1736863715151,0.09666993,96393.0,96392.0,1.80004416]
[1736863715570,0.09766993,96393.0,96392.0,1.80904416]
[1736863715781,0.09766993,96393.0,96392.0,0.28604416]
[1736863716183,0.09766993,96393.0,96392.0,0.28504416]
[1736863716586,0.09766993,96393.0,96392.0,0.28804416]
[1736863716820,0.09666993,96393.0,96392.0,0.27904416]
[1736863717033,0.09666993,96393.0,96392.0,0.4064616]
[1736863717145,0.09766993,96393.0,96392.0,0.41415275]
[1736863717350,0.09766993,96393.0,96392.0,0.42815275]
[1736863717573,0.09766993,96393.0,96392.0,0.2987121]
[1736863717783,0.09866993,96393.0,96392.0,0.2987121]
[1736863717982,0.09766993,96393.0,96392.0,0.2867121]
[1736863718182,0.09866993,96393.0,96392.0,1.7957121]
[1736863718577,0.09666993,96393.0,96392.0,2.01595134]
[1736863718869,0.09766993,96393.0,96392.0,0.50195134]
[1736863719455,0.09766993,96393.0,96392.0,0.50495134]
[1736863719658,0.09766993,96393.0,96392.0,0.51725719]
[1736863720110,0.09766993,96393.0,96392.0,0.53725719]
[1736863720309,0.09766993,96393.0,96392.0,0.54025719]
[1736863720503,0.09766993,96393.0,96392.0,0.31101795]
[1736863721321,0.09766993,96393.0,96392.0,2.04025719]
[1736863722360,0.09766993,96393.0,96392.0,1.81101795]
[1736863723560,0.07266993,96393.0,96392.0,1.8430945]
[1736863723900,0.07266993,96393.0,96392.0,2.04182535]
[1736863724528,0.07266993,96393.0,96392.0,2.07391101]
[1736863724727,0.07266993,96393.0,96392.0,1.84310361]
[1736863725995,0.07266993,96393.0,96392.0,2.07391101]
[1736863726828,0.07266993,96393.0,96392.0,2.34284261]
[1736863726829,0.0018545,96393.0,96392.0,2.34284261]
[1736863727054,0.0018545,96393.0,96392.0,2.02156161]
[1736863727209,0.0018545,96393.0,96392.0,1.96743161]
[1736863727408,0.0018545,96393.0,96392.0,2.00897461]
[1736863727610,0.0008545,96393.0,96392.0,1.99997461]
[1736863727813,0.0018545,96393.0,96392.0,2.00897461]
[1736863728251,0.0008545,96393.0,96392.0,1.99997461]
[1736863728630,0.0018545,96393.0,96392.0,2.00897461]
[1736863728838,0.0008545,96393.0,96392.0,1.99697461]
[1736863729080,0.0008545,96393.0,96392.0,1.99897461]
[1736863729233,0.0008545,96393.0,96392.0,1.87464661]
[1736863729430,0.0008545,96393.0,96392.0,1.83310361]
[1736863729640,0.0008545,96393.0,96392.0,1.83110361]
[1736863729848,0.0008545,96393.0,96392.0,1.80201795]
[1736863730300,0.0008545,96393.0,96392.0,1.80901795]
[1736863730477,0.0008545,96393.0,96392.0,1.80601795]
[1736863730762,0.0008545,96393.0,96392.0,1.80101795]
[1736863730931,0.0008543,96415.0,96395.0,0.023]
[1736863730932,0.07081543,96409.0,96395.0,0.023]
[1736863731137,0.01626376,96420.0,96409.0,0.023]
[1736863731338,0.01626376,96420.0,96419.0,0.12722692]
[1736863731538,0.03523221,96434.0,96419.0,0.12722692]
[1736863731539,0.03523221,96434.0,96427.0,0.207408]
[1736863731740,0.13523221,96434.0,96433.0,0.12722692]
[1736863731944,0.23523221,96434.0,96433.0,0.10422692]
[1736863732149,0.1,96413.0,96400.0,0.1861701]
[1736863732302,0.67613221,96409.0,96408.0,0.10422692]
[1736863732505,0.77613221,96409.0,96408.0,0.10422692]
[1736863732732,0.77613221,96409.0,96408.0,0.37515414]
[1736863733131,0.77613221,96409.0,96408.0,0.27092722]
[1736863733353,0.67613221,96409.0,96408.0,0.27092722]
[1736863733579,0.67613221,96393.0,96392.0,0.00179403]
[1736863733782,0.77613221,96393.0,96392.0,0.10615552]
[1736863734460,0.67613221,96393.0,96392.0,0.10615552]
[1736863734729,0.77613221,96393.0,96392.0,0.10615552]
[1736863735087,0.67613221,96393.0,96392.0,0.10615552]
[1736863735291,0.67613221,96393.0,96392.0,0.11386148]
[1736863735693,0.57613221,96393.0,96392.0,0.11386148]
[1736863735920,0.57613221,96393.0,96392.0,0.28686148]
[1736863736320,0.67813221,96393.0,96392.0,0.11386148]
[1736863736529,0.77813221,96393.0,96392.0,0.11886148]
[1736863736852,0.77613221,96393.0,96392.0,0.11386148]
[1736863737088,0.77713221,96393.0,96392.0,0.11386148]
[1736863737291,0.77713221,96393.0,96392.0,0.11486148]
[1736863737492,0.77713221,96393.0,96392.0,0.11386148]
[1736863737705,0.77613221,96393.0,96392.0,0.11386148]
[1736863737910,0.77813221,96393.0,96392.0,0.11386148]
[1736863738350,0.77813221,96393.0,96392.0,0.10615552]
[1736863738772,0.67813221,96393.0,96392.0,0.10615552]
[1736863738970,0.77813221,96393.0,96392.0,0.10615552]
[1736863739264,0.77613221,96393.0,96392.0,0.10615552]
[1736863739687,0.77713221,96393.0,96392.0,0.11386148]
[1736863740032,0.77613221,96393.0,96392.0,0.11386148]
[1736863740441,0.77713221,96393.0,96392.0,0.11386148]
[1736863741289,0.77613221,96393.0,96392.0,0.11386148]
[1736863743035,0.77613221,96393.0,96392.0,0.10615552]
[1736863743240,0.77613221,96393.0,96392.0,0.0019286]
[1736863743484,0.82553221,96393.0,96392.0,0.0019286]
[1736863744088,1.02653221,96393.0,96392.0,0.0019286]
[1736863744289,1.13075913,96393.0,96392.0,0.0019286]
[1736863744511,1.02553221,96393.0,96392.0,0.0019286]
[1736863744856,1.02653221,96393.0,96392.0,0.0019286]
[1736863745449,1.02553221,96393.0,96392.0,0.0019286]
[1736863745651,1.03053221,96393.0,96392.0,0.0019286]
[1736863745924,0.93053221,96393.0,96392.0,0.0019286]
[1736863746065,1.04680102,96393.0,96392.0,0.0019286]
[1736863746271,1.03053221,96393.0,96392.0,0.0019286]
[1736863746472,0.83053221,96393.0,96392.0,0.0019286]
[1736863746793,0.83053221,96393.0,96392.0,0.0029286]
[1736863746993,0.92553221,96393.0,96392.0,0.0029286]
[1736863747403,0.83053221,96393.0,96392.0,0.0029286]
[1736863747600,0.83053221,96393.0,96392.0,0.0019286]
[1736863747800,0.82553221,96393.0,96392.0,0.0029286]
[1736863748212,0.82553221,96393.0,96392.0,0.10615552]
[1736863748213,0.77613221,96393.0,96392.0,0.10615552]
[1736863748410,0.77613221,96393.0,96392.0,0.10715552]
[1736863748997,0.78013221,96393.0,96392.0,0.10715552]
[1736863749600,0.78013221,96393.0,96392.0,0.0029286]
[1736863750216,0.85814543,96393.0,96392.0,0.0019286]
[1736863750420,0.79239979,96393.0,96392.0,0.0019286]
[1736863750782,0.79639979,96393.0,96392.0,0.0019286]
[1736863751152,0.79239979,96393.0,96392.0,0.0019286]
[1736863751358,0.77613221,96393.0,96392.0,0.0029286]
[1736863751552,0.78013221,96393.0,96392.0,0.0029286]
[1736863751751,0.86956071,96393.0,96392.0,0.0019286]
[1736863751956,0.86556071,96393.0,96392.0,0.0019286]
[1736863752133,0.67613221,96393.0,96392.0,0.0019286]
[1736863752494,0.68013221,96393.0,96392.0,0.10615552]
[1736863752696,0.78013221,96393.0,96392.0,0.10615552]
[1736863752818,0.78013221,96393.0,96392.0,0.0019286]
[1736863754440,0.77613221,96393.0,96392.0,0.0029286]
[1736863754617,0.78013221,96393.0,96392.0,0.0019286]
[1736863755076,0.77613221,96393.0,96392.0,0.0019286]
[1736863755505,0.78013221,96393.0,96392.0,0.0019286]
[1736863755947,0.79639977,96393.0,96392.0,0.0019286]
[1736863756123,0.79239977,96393.0,96392.0,0.0019286]
[1736863757321,0.79639977,96393.0,96392.0,0.0019286]
[1736863758522,0.79239977,96393.0,96392.0,0.0019286]
[1736863758858,0.79539977,96393.0,96392.0,0.0019286]
[1736863759750,0.77913221,96393.0,96392.0,0.0019286]
[1736863765227,0.97913221,96393.0,96392.0,0.0019286]
[1736863766252,0.99540119,96393.0,96392.0,0.0019286]
[1736863766607,1.00559411,96393.0,96392.0,0.0019286]
[1736863766815,1.00259411,96393.0,96392.0,0.0019286]
[1736863767110,1.00559411,96393.0,96392.0,0.0019286]
[1736863767982,1.00259411,96393.0,96392.0,0.0019286]
[1736863768388,1.00559411,96393.0,96392.0,0.0019286]
[1736863769633,0.98932513,96393.0,96392.0,0.0019286]
[1736863770678,0.98632513,96393.0,96392.0,0.0019286]
[1736863771091,2.10520508,96393.0,96392.0,0.0019286]
[1736863771317,2.18610508,96393.0,96392.0,0.0019286]
[1736863772611,2.20237459,96393.0,96392.0,0.0019286]
[1736863773046,2.19937459,96393.0,96392.0,0.0019286]
[1736863773973,2.20137459,96393.0,96392.0,0.0029286]
[1736863774342,2.20137459,96393.0,96392.0,0.0019286]
[1736863774594,2.19937459,96393.0,96392.0,0.0019286]
[1736863774800,2.20837459,96393.0,96392.0,0.0029286]
[1736863774974,2.296332,96393.0,96392.0,0.0029286]
[1736863775178,1.66257257,96393.0,96392.0,0.0029286]
[1736863775412,0.78513221,96393.0,96392.0,0.0029286]
[1736863776286,0.78013221,96393.0,96392.0,0.0029286]
[1736863776666,0.78513221,96393.0,96392.0,0.0029286]
[1736863776843,0.78513221,96393.0,96392.0,0.0019286]
[1736863776844,1.07964543,96393.0,96392.0,0.0019286]
[1736863777045,0.97613221,96393.0,96392.0,0.0019286]
[1736863777588,0.989395,96393.0,96392.0,0.0019286]
[1736863777954,0.994235,96393.0,96392.0,0.0019286]
[1736863778350,0.997235,96393.0,96392.0,0.0019286]
[1736863778769,0.78697221,96393.0,96392.0,0.0019286]
[1736863778964,0.67913221,96393.0,96392.0,0.0019286]
[1736863779171,0.77913221,96393.0,96392.0,0.0019286]
[1736863779581,0.77613221,96393.0,96392.0,0.0019286]
[1736863780043,0.77913221,96393.0,96392.0,0.0019286]
[1736863780381,0.77613221,96393.0,96392.0,0.0019286]
[1736863780768,0.77813221,96393.0,96392.0,0.0019286]
[1736863781366,0.77613221,96393.0,96392.0,0.0019286]
[1736863782280,0.79439998,96393.0,96392.0,0.0019286]
[1736863782626,0.77813221,96393.0,96392.0,0.0019286]
[1736863783044,0.87813221,96393.0,96392.0,0.0019286]
[1736863783249,1.01245951,96393.0,96392.0,0.0019286]
[1736863783456,1.09135951,96393.0,96392.0,0.0019286]
[1736863783876,0.85903221,96393.0,96392.0,0.0019286]
[1736863784121,0.67813221,96393.0,96392.0,0.0019286]
[1736863784313,0.67613221,96393.0,96392.0,0.0019286]
[1736863784518,0.87613221,96393.0,96392.0,0.0019286]
[1736863784711,0.87813221,96393.0,96392.0,0.0019286]
[1736863785310,0.87613221,96393.0,96392.0,0.0019286]
[1736863785722,0.8924009,96393.0,96392.0,0.0019286]
[1736863786393,0.7924009,96393.0,96392.0,0.0019286]
[1736863786644,0.7944009,96393.0,96392.0,0.0019286]
[1736863786817,0.77813221,96393.0,96392.0,0.0019286]
[1736863787250,0.77613221,96393.0,96392.0,0.0019286]
[1736863788346,0.77813221,96393.0,96392.0,0.0019286]
[1736863789819,0.77613221,96393.0,96392.0,0.0019286]
[1736863790030,0.77813221,96393.0,96392.0,0.0019286]
[1736863790187,0.79439998,96393.0,96392.0,0.0019286]
[1736863790590,0.79239998,96393.0,96392.0,0.0019286]
[1736863790835,0.79439998,96393.0,96392.0,0.0019286]
[1736863791448,0.79239998,96393.0,96392.0,0.0019286]
[1736863791658,0.77813221,96393.0,96392.0,0.0019286]
[1736863793316,0.77613221,96393.0,96392.0,0.0019286]
[1736863793511,0.7923999,96393.0,96392.0,0.0019286]
[1736863793647,0.7943999,96393.0,96392.0,0.0019286]
[1736863794003,0.7923999,96393.0,96392.0,0.0019286]
[1736863794239,0.6923999,96393.0,96392.0,0.0019286]
[1736863794390,0.67813221,96393.0,96392.0,0.0019286]
[1736863794591,0.77813221,96393.0,96392.0,0.0019286]
[1736863795193,0.67813221,96393.0,96392.0,0.0019286]
[1736863795391,0.77813221,96393.0,96392.0,0.0019286]
[1736863795609,0.67813221,96393.0,96392.0,0.0019286]
[1736863795811,0.77813221,96393.0,96392.0,0.0019286]
[1736863796038,0.67813221,96393.0,96392.0,0.0019286]
[1736863796466,0.77813221,96393.0,96392.0,0.0019286]
[1736863796664,0.79439979,96393.0,96392.0,0.0019286]
[1736863796826,0.79239979,96393.0,96392.0,0.0019286]
[1736863797323,0.79439979,96393.0,96392.0,0.0019286]
[1736863797717,0.79239979,96393.0,96392.0,0.0019286]
[1736863797924,0.89239979,96393.0,96392.0,0.0019286]